lending/lending_fUSD_20250621
["ID","MTS","AMOUNT","RATE_DAILY","PERIOD"]
[366803909,1750464034412,173.06,0.00018876,2]
[366803910,1750464037144,-152.0,0.00023144,2]
[366803911,1750464040116,-40.79128817,0.00023144,2]
[366803912,1750464131791,203.0,0.00022182,2]
[366803919,1750464284394,-322.25069949,0.00023127,2]
[366803920,1750464290296,-314.72844166,0.00023127,2]
[366803921,1750464292375,-250.0,0.00023127,2]
[366803924,1750464384148,7017.13,0.000247,120]
[366803926,1750464417516,267.59,0.00020622,2]
[366803927,1750464475684,641.0,0.000247,120]
[366803928,1750464476494,236.0,0.000247,120]
[366803930,1750464491712,203.0,0.00022983,2]
[366803931,1750464495132,203.27,0.00013699,2]
[366803932,1750464495337,203.27,0.00020187,2]
[366803934,1750464534463,271.0,0.000247,120]
[366803935,1750464534839,2323.66887,0.00023069,2]
[366803936,1750464535270,1701.0,0.000247,120]
[366803939,1750464596968,291.0,0.000247,120]
[366803947,1750464631999,-600.0,0.00023185,4]
[366803948,1750464632010,-200.0,0.00023278,2]
[366803949,1750464632020,-250.0,0.00023367,2]
[366803950,1750464632030,-1846.65,0.00023391,2]
[366803951,1750464632041,-2324.09,0.00023456,2]
[366803952,1750464632051,-1354.62,0.0002348,2]
[366803953,1750464632061,-1200.0,0.00023543,2]
[366803954,1750464632070,-1147.4,0.00023544,2]
[366803955,1750464632080,-456.0,0.00023584,2]
[366803956,1750464632090,-300.0,0.00023584,2]
[366803957,1750464632101,-300.0,0.00023585,2]
[366803958,1750464632110,-300.0,0.00023585,2]
[366803959,1750464632122,-1000.0,0.00023586,2]
[366803960,1750464632132,-295.86,0.0002359,2]
[366803961,1750464632142,-168.0,0.00023628,2]
[366803962,1750464632152,-558.82,0.00023629,2]
[366803963,1750464632162,-589.13,0.00023631,2]
[366803964,1750464632173,-367.2,0.00023652,2]
[366803965,1750464632183,-168.0,0.00023794,2]
[366803966,1750464632192,-462.5,0.00023836,2]
[366803968,1750464632202,-1957.856,0.00023989,2]
[366803970,1750464632213,-207.4,0.00023989,2]
[366803972,1750464632223,-2030.296672,0.00024044,2]
[366803974,1750464632233,-168.0,0.00024048,2]
[366803976,1750464632242,-2105.41764886,0.00024099,2]
[366803978,1750464632251,-2183.31810187,0.00024154,2]
[366803980,1750464632261,-2264.10087164,0.00024209,2]
[366803982,1750464632271,-772.82222043,0.00024212,2]
[366803983,1750464632281,-2347.87260389,0.00024264,2]
[366803984,1750464632292,-300.0,0.00024264,2]
[366803985,1750464632302,-168.0,0.00024273,2]
[366803987,1750464632312,-2434.74389024,0.00024319,2]
[366803989,1750464632322,-2524.82941417,0.00024374,2]
[366803991,1750464632331,-151.0,0.00024405,2]
[366803993,1750464632341,-385.05867727,0.00024405,2]
[366803996,1750464632351,-156.9382752,0.00024405,2]
[366803998,1750464632361,-668.65185757,0.00024405,2]
[366804000,1750464632370,-151.0,0.00024405,2]
[366804001,1750464632380,-151.0,0.00024405,2]
[366804003,1750464632390,-54156.23166804,0.0002442,2]
[366804005,1750464632400,-2030.29667199,0.00024429,2]
[366804008,1750464632411,-168.0,0.00024445,2]
[366804010,1750464632420,-168.0,0.00024467,2]
[366804012,1750464632430,-168.0,0.0002448,2]
[366804014,1750464632441,-367.2,0.00024539,2]
[366804016,1750464632450,-160.32310944,0.00024544,2]
[366804018,1750464632460,-168.0,0.00024549,2]
[366804020,1750464632470,-2500.0,0.00024554,2]
[366804022,1750464632479,-6985.77468044,0.00024555,2]
[366804024,1750464632489,-1000.0,0.00024557,2]
[366804026,1750464632499,-484.7976,0.00024557,2]
[366804028,1750464632509,-1676.3769,0.00024557,2]
[366804030,1750464632519,-1000.0,0.00024557,2]
[366804032,1750464632529,-167.8316872,0.00024557,2]
[366804033,1750464632539,-1366.41561627,0.00024557,2]
[366804034,1750464632548,-173.01334362,0.00024557,2]
[366804035,1750464632558,-246.11033364,0.00024557,2]
[366804036,1750464632567,-772.82222044,0.00024593,2]
[366804037,1750464632578,-1400.0,0.000246,8]
[366804038,1750464632588,-500.0,0.00024613,2]
[366804039,1750464632598,-3035.21,0.00024631,2]
[366804040,1750464632607,-350.0,0.00024632,2]
[366804041,1750464632617,-150.48,0.00024647,2]
[366804042,1750464632626,-150.48,0.00024647,2]
[366804043,1750464632635,-150.48,0.00024647,2]
[366804044,1750464632644,-71488.09451735,0.00024654,2]
[366804045,1750464632665,-20308.62027481,0.00024654,2]
[366804046,1750464632680,-1706.9000001,0.00024654,2]
[366804048,1750464632692,-44307.46870435,0.00024654,2]
[366804050,1750464632702,-168.0,0.00024656,2]
[366804052,1750464632712,-23737.4016559,0.00024656,2]
[366804054,1750464632721,-2379.99445217,0.00024657,5]
[366804056,1750464632731,-7752.10575243,0.00024657,5]
[366804058,1750464632742,-23175.71762513,0.00024657,5]
[366804061,1750464632762,-303.51135824,0.00024657,5]
[366804065,1750464632792,-846.055,0.00024657,5]
[366804066,1750464632804,-459.07470552,0.00024657,5]
[366804083,1750464637869,-153.11787373,0.00024556,2]
[366804084,1750464637879,-1000.51539108,0.00024656,2]
[366804085,1750464637888,-302.3408838,0.00024656,2]
[366804086,1750464637898,-563.2455924,0.00024657,5]
[366804087,1750464637909,-673.89039965,0.00024657,5]
[366804088,1750464637921,-5959.17782995,0.00024657,5]
[366804089,1750464637932,-2642.94945025,0.00024657,5]
[366804090,1750464637943,-5940.51,0.00024657,5]
[366804091,1750464637955,-446.29699986,0.00024657,5]
[366804092,1750464637966,-250.97874506,0.00024657,5]
[366804093,1750464637981,-488.87112815,0.00024657,5]
[366804094,1750464638136,-1288.78750001,0.00024657,5]
[366804095,1750464638149,-953.53298712,0.00024657,5]
[366804102,1750464638583,477.77487919,0.00012893,2]
[366804116,1750464640121,-153.11787369,0.00024619,2]
[366804117,1750464640131,-631650.82633405,0.00024657,5]
[366804118,1750464640142,-768.19237307,0.00024657,2]
[366804119,1750464640151,-490.0,0.00024657,2]
[366804120,1750464640162,-280.0,0.00024657,2]
[366804121,1750464640172,-490.0,0.00024657,2]
[366804122,1750464640182,-490.0,0.00024657,2]
[366804123,1750464640192,-490.0,0.00024657,2]
[366804124,1750464640202,-490.0,0.00024657,2]
[366804125,1750464640212,-490.0,0.00024657,2]
[366804126,1750464640222,-490.0,0.00024657,2]
[366804127,1750464640232,-490.0,0.00024657,2]
[366804128,1750464640242,-490.0,0.00024657,2]
[366804129,1750464640251,-490.0,0.00024657,2]
[366804130,1750464640261,-490.0,0.00024657,2]
[366804131,1750464640271,-345.16897849,0.00024657,2]
[366804132,1750464640282,-490.0,0.00024657,2]
[366804133,1750464640292,-490.0,0.00024657,2]
[366804134,1750464640302,-210.0,0.00024657,2]
[366804135,1750464640314,-484.482948,0.00024657,2]
[366804136,1750464640323,-187.06372292,0.00024657,2]
[366804137,1750464640336,-1871.472302,0.00024657,2]
[366804138,1750464640347,-490.0,0.00024657,2]
[366804139,1750464640357,-2219.934812,0.00024657,2]
[366804140,1750464640368,-231.68,0.00024657,2]
[366804141,1750464640377,-157.1794,0.00024657,2]
[366804142,1750464640387,-490.0,0.00024657,2]
[366804143,1750464640397,-490.0,0.00024657,2]
[366804144,1750464640406,-490.0,0.00024657,2]
[366804145,1750464640416,-1871.472302,0.00024657,2]
[366804146,1750464640427,-210.0,0.00024657,2]
[366804147,1750464640437,-490.0,0.00024657,2]
[366804148,1750464640447,-490.0,0.00024657,2]
[366804149,1750464640456,-630.0,0.00024657,2]
[366804150,1750464640466,-490.0,0.00024657,2]
[366804151,1750464640476,-490.0,0.00024657,2]
[366804152,1750464640485,-180.93499373,0.00024657,2]
[366804153,1750464640495,-210.0,0.00024657,2]
[366804154,1750464640505,-500.0,0.00024657,2]
[366804155,1750464640514,-490.0,0.00024657,2]
[366804156,1750464640524,-490.0,0.00024657,2]
[366804158,1750464640533,-490.0,0.00024657,2]
[366804159,1750464640543,-490.0,0.00024657,2]
[366804160,1750464640553,-3329.902217,0.00024657,2]
[366804161,1750464640563,-490.0,0.00024657,2]
[366804162,1750464640573,-210.0,0.00024657,2]
[366804163,1750464640583,-490.94667314,0.00024657,2]
[366804164,1750464640592,-490.0,0.00024657,2]
[366804165,1750464640604,-490.0,0.00024657,2]
[366804166,1750464640614,-511.68,0.00024657,2]
[366804167,1750464640624,-210.0,0.00024657,2]
[366804168,1750464640634,-490.0,0.00024657,2]
[366804169,1750464640644,-490.0,0.00024657,2]
[366804170,1750464640654,-200.0,0.00024657,2]
[366804171,1750464640663,-210.0,0.00024657,2]
[366804172,1750464640677,-210.0,0.00024657,2]
[366804173,1750464640687,-490.0,0.00024657,2]
[366804174,1750464640697,-490.0,0.00024657,2]
[366804175,1750464640707,-210.0,0.00024657,2]
[366804176,1750464640718,-490.0,0.00024657,2]
[366804177,1750464640728,-490.0,0.00024657,2]
[366804178,1750464640737,-490.0,0.00024657,2]
[366804179,1750464640749,-490.0,0.00024657,2]
[366804180,1750464640759,-490.0,0.00024657,2]
[366804181,1750464640769,-490.0,0.00024657,2]
[366804182,1750464640779,-490.0,0.00024657,2]
[366804183,1750464640788,-490.0,0.00024657,2]
[366804184,1750464640799,-490.0,0.00024657,2]
[366804185,1750464640809,-490.0,0.00024657,2]
[366804186,1750464640819,-490.0,0.00024657,2]
[366804187,1750464640829,-490.0,0.00024657,2]
[366804188,1750464640839,-490.0,0.00024657,2]
[366804189,1750464640849,-490.0,0.00024657,2]
[366804190,1750464640859,-490.0,0.00024657,2]
[366804191,1750464640869,-490.0,0.00024657,2]
[366804192,1750464640878,-490.0,0.00024657,2]
[366804193,1750464640888,-490.0,0.00024657,2]
[366804194,1750464640899,-490.0,0.00024657,2]
[366804195,1750464640909,-490.0,0.00024657,2]
[366804196,1750464640918,-630.0,0.00024657,2]
[366804197,1750464640928,-490.0,0.00024657,2]
[366804198,1750464640938,-362.13,0.00024657,2]
[366804199,1750464640948,-490.0,0.00024657,2]
[366804200,1750464640958,-490.0,0.00024657,2]
[366804201,1750464640968,-490.0,0.00024657,2]
[366804202,1750464640978,-490.0,0.00024657,2]
[366804203,1750464640989,-490.0,0.00024657,2]
[366804204,1750464640999,-490.0,0.00024657,2]
[366804205,1750464641010,-490.0,0.00024657,2]
[366804206,1750464641020,-490.0,0.00024657,2]
[366804207,1750464641030,-490.0,0.00024657,2]
[366804208,1750464641040,-490.0,0.00024657,2]
[366804209,1750464641050,-490.0,0.00024657,2]
[366804210,1750464641060,-490.0,0.00024657,2]
[366804211,1750464641069,-280.0,0.00024657,2]
[366804212,1750464641079,-490.0,0.00024657,2]
[366804213,1750464641089,-490.0,0.00024657,2]
[366804214,1750464641098,-490.0,0.00024657,2]
[366804215,1750464641108,-490.0,0.00024657,2]
[366804216,1750464641118,-490.0,0.00024657,2]
[366804217,1750464641128,-490.0,0.00024657,2]
[366804218,1750464641138,-490.0,0.00024657,2]
[366804219,1750464641147,-490.0,0.00024657,2]
[366804220,1750464641157,-490.0,0.00024657,2]
[366804221,1750464641167,-490.0,0.00024657,2]
[366804222,1750464641178,-490.0,0.00024657,2]
[366804223,1750464641187,-490.0,0.00024657,2]
[366804224,1750464641197,-490.0,0.00024657,2]
[366804225,1750464641207,-300.0,0.00024657,2]
[366804226,1750464641218,-490.0,0.00024657,2]
[366804227,1750464641227,-490.0,0.00024657,2]
[366804228,1750464641237,-490.0,0.00024657,2]
[366804229,1750464641247,-490.0,0.00024657,2]
[366804230,1750464641256,-490.0,0.00024657,2]
[366804231,1750464641266,-210.0,0.00024657,2]
[366804232,1750464641275,-490.0,0.00024657,2]
[366804233,1750464641285,-490.0,0.00024657,2]
[366804234,1750464641294,-490.0,0.00024657,2]
[366804235,1750464641304,-490.0,0.00024657,2]
[366804236,1750464641314,-490.0,0.00024657,2]
[366804237,1750464641324,-490.0,0.00024657,2]
[366804238,1750464641334,-490.0,0.00024657,2]
[366804239,1750464641344,-490.0,0.00024657,2]
[366804240,1750464641354,-490.0,0.00024657,2]
[366804241,1750464641363,-490.0,0.00024657,2]
[366804242,1750464641372,-490.0,0.00024657,2]
[366804243,1750464641382,-490.0,0.00024657,2]
[366804244,1750464641392,-490.0,0.00024657,2]
[366804245,1750464641402,-490.0,0.00024657,2]
[366804246,1750464641411,-490.0,0.00024657,2]
[366804247,1750464641421,-490.0,0.00024657,2]
[366804248,1750464641431,-490.0,0.00024657,2]
[366804249,1750464641441,-312.58,0.00024657,2]
[366804250,1750464641451,-490.0,0.00024657,2]
[366804251,1750464641460,-490.0,0.00024657,2]
[366804252,1750464641470,-490.0,0.00024657,2]
[366804253,1750464641480,-533.88,0.00024657,2]
[366804254,1750464641490,-500.0,0.00024657,2]
[366804255,1750464641500,-490.0,0.00024657,2]
[366804256,1750464641510,-490.0,0.00024657,2]
[366804257,1750464641520,-490.0,0.00024657,2]
[366804258,1750464641530,-879.51,0.00024657,2]
[366804259,1750464641539,-490.0,0.00024657,2]
[366804260,1750464641550,-210.0,0.00024657,2]
[366804261,1750464641560,-490.0,0.00024657,2]
[366804262,1750464641570,-490.0,0.00024657,2]
[366804263,1750464641580,-490.0,0.00024657,2]
[366804264,1750464641590,-490.0,0.00024657,2]
[366804265,1750464641600,-490.0,0.00024657,2]
[366804266,1750464641854,-490.0,0.00024657,2]
[366804267,1750464641865,-490.0,0.00024657,2]
[366804268,1750464641875,-490.0,0.00024657,2]
[366804269,1750464641885,-490.0,0.00024657,2]
[366804270,1750464641894,-490.0,0.00024657,2]
[366804271,1750464641904,-485.16,0.00024657,2]
[366804272,1750464641914,-490.0,0.00024657,2]
[366804273,1750464641924,-490.0,0.00024657,2]
[366804274,1750464641934,-490.0,0.00024657,2]
[366804275,1750464641944,-490.0,0.00024657,2]
[366804276,1750464641954,-490.0,0.00024657,2]
[366804277,1750464641964,-490.0,0.00024657,2]
[366804278,1750464641973,-490.0,0.00024657,2]
[366804279,1750464641983,-490.0,0.00024657,2]
[366804280,1750464641993,-490.0,0.00024657,2]
[366804281,1750464642003,-280.0,0.00024657,2]
[366804282,1750464642013,-592.24,0.00024657,2]
[366804283,1750464642023,-490.0,0.00024657,2]
[366804284,1750464642032,-2219.934811,0.00024657,2]
[366804285,1750464642042,-490.0,0.00024657,2]
[366804286,1750464642052,-490.0,0.00024657,2]
[366804287,1750464642062,-490.0,0.00024657,2]
[366804288,1750464642071,-490.0,0.00024657,2]
[366804289,1750464642081,-490.0,0.00024657,2]
[366804290,1750464642091,-210.0,0.00024657,2]
[366804291,1750464642101,-630.0,0.00024657,2]
[366804292,1750464642111,-490.0,0.00024657,2]
[366804293,1750464642120,-490.0,0.00024657,2]
[366804294,1750464642130,-490.0,0.00024657,2]
[366804295,1750464642140,-630.0,0.00024657,2]
[366804296,1750464642150,-490.0,0.00024657,2]
[366804297,1750464642160,-626.75142097,0.00024657,2]
[366804298,1750464642170,-210.0,0.00024657,2]
[366804299,1750464642180,-490.0,0.00024657,2]
[366804300,1750464642190,-490.0,0.00024657,2]
[366804301,1750464642200,-490.0,0.00024657,2]
[366804302,1750464642210,-490.0,0.00024657,2]
[366804303,1750464642220,-490.0,0.00024657,2]
[366804304,1750464642230,-490.0,0.00024657,2]
[366804305,1750464642239,-490.0,0.00024657,2]
[366804306,1750464642249,-644.67,0.00024657,2]
[366804307,1750464642259,-559.4146647,0.00024657,2]
[366804308,1750464642269,-574.01374915,0.00024657,2]
[366804309,1750464642279,-250.0,0.00024657,2]
[366804310,1750464642293,-490.0,0.00024657,2]
[366804311,1750464642307,-490.0,0.00024657,2]
[366804312,1750464642317,-490.0,0.00024657,2]
[366804313,1750464642326,-526.93513565,0.00024657,2]
[366804314,1750464642337,-490.0,0.00024657,2]
[366804315,1750464642347,-1079.81,0.00024657,2]
[366804316,1750464642357,-490.0,0.00024657,2]
[366804317,1750464642367,-490.0,0.00024657,2]
[366804318,1750464642378,-490.0,0.00024657,2]
[366804319,1750464642388,-996.557832,0.00024657,2]
[366804320,1750464642398,-490.0,0.00024657,2]
[366804321,1750464642407,-584.52,0.00024657,2]
[366804322,1750464642417,-490.0,0.00024657,2]
[366804323,1750464642427,-490.0,0.00024657,2]
[366804324,1750464642437,-490.0,0.00024657,2]
[366804325,1750464642447,-490.0,0.00024657,2]
[366804326,1750464642457,-490.0,0.00024657,2]
[366804327,1750464642467,-405.26,0.00024657,2]
[366804328,1750464642477,-244.48,0.00024657,2]
[366804329,1750464642487,-490.0,0.00024657,2]
[366804330,1750464642498,-490.0,0.00024657,2]
[366804331,1750464642508,-490.0,0.00024657,2]
[366804332,1750464642518,-490.0,0.00024657,2]
[366804333,1750464642528,-490.0,0.00024657,2]
[366804334,1750464642538,-490.0,0.00024657,2]
[366804335,1750464642547,-490.0,0.00024657,2]
[366804336,1750464642556,-490.0,0.00024657,2]
[366804337,1750464642566,-490.0,0.00024657,2]
[366804338,1750464642575,-490.0,0.00024657,2]
[366804339,1750464642585,-490.0,0.00024657,2]
[366804340,1750464642594,-490.0,0.00024657,2]
[366804341,1750464642604,-490.0,0.00024657,2]
[366804342,1750464642614,-490.0,0.00024657,2]
[366804343,1750464642624,-490.0,0.00024657,2]
[366804344,1750464642634,-490.0,0.00024657,2]
[366804345,1750464642643,-490.0,0.00024657,2]
[366804346,1750464642653,-174.98,0.00024657,2]
[366804347,1750464642664,-499.88,0.00024657,2]
[366804348,1750464642676,-490.0,0.00024657,2]
[366804349,1750464642685,-490.0,0.00024657,2]
[366804350,1750464642695,-490.0,0.00024657,2]
[366804352,1750464642705,-490.0,0.00024657,2]
[366804354,1750464642717,-630.0,0.00024657,2]
[366804355,1750464642727,-319.46,0.00024657,2]
[366804356,1750464642736,-490.0,0.00024657,2]
[366804357,1750464642747,-490.0,0.00024657,2]
[366804358,1750464642757,-490.0,0.00024657,2]
[366804359,1750464642770,-490.0,0.00024657,2]
[366804360,1750464642780,-630.0,0.00024657,2]
[366804361,1750464642789,-490.0,0.00024657,2]
[366804362,1750464642799,-490.0,0.00024657,2]
[366804363,1750464642809,-490.0,0.00024657,2]
[366804364,1750464642819,-490.0,0.00024657,2]
[366804365,1750464642829,-490.0,0.00024657,2]
[366804366,1750464642839,-490.0,0.00024657,2]
[366804367,1750464642850,-490.0,0.00024657,2]
[366804368,1750464642860,-490.0,0.00024657,2]
[366804369,1750464642870,-280.0,0.00024657,2]
[366804370,1750464642880,-250.62,0.00024657,2]
[366804371,1750464642890,-500.0,0.00024657,2]
[366804372,1750464642899,-490.0,0.00024657,2]
[366804373,1750464642909,-490.0,0.00024657,2]
[366804374,1750464642919,-490.0,0.00024657,2]
[366804375,1750464642928,-490.0,0.00024657,2]
[366804376,1750464642938,-490.0,0.00024657,2]
[366804377,1750464642948,-490.0,0.00024657,2]
[366804378,1750464642958,-490.0,0.00024657,2]
[366804379,1750464642968,-490.0,0.00024657,2]
[366804380,1750464642978,-490.0,0.00024657,2]
[366804381,1750464642987,-624.74,0.00024657,2]
[366804382,1750464642998,-490.0,0.00024657,2]
[366804383,1750464643008,-490.0,0.00024657,2]
[366804384,1750464643017,-523.66,0.00024657,2]
[366804385,1750464643027,-490.0,0.00024657,2]
[366804386,1750464643037,-490.0,0.00024657,2]
[366804387,1750464643047,-490.0,0.00024657,2]
[366804388,1750464643057,-490.0,0.00024657,2]
[366804389,1750464643067,-490.0,0.00024657,2]
[366804390,1750464643077,-490.0,0.00024657,2]
[366804391,1750464643086,-210.0,0.00024657,2]
[366804392,1750464643096,-490.0,0.00024657,2]
[366804393,1750464643105,-490.0,0.00024657,2]
[366804394,1750464643115,-210.0,0.00024657,2]
[366804395,1750464643125,-562.68,0.00024657,2]
[366804396,1750464643134,-490.0,0.00024657,2]
[366804397,1750464643144,-490.0,0.00024657,2]
[366804398,1750464643154,-490.0,0.00024657,2]
[366804399,1750464643163,-490.0,0.00024657,2]
[366804400,1750464643173,-490.0,0.00024657,2]
[366804401,1750464643183,-490.0,0.00024657,2]
[366804402,1750464643193,-490.0,0.00024657,2]
[366804403,1750464643203,-490.0,0.00024657,2]
[366804404,1750464643213,-490.0,0.00024657,2]
[366804405,1750464643222,-490.0,0.00024657,2]
[366804406,1750464643233,-210.0,0.00024657,2]
[366804407,1750464643242,-490.0,0.00024657,2]
[366804408,1750464643252,-563.79,0.00024657,2]
[366804409,1750464643262,-490.0,0.00024657,2]
[366804410,1750464643272,-490.0,0.00024657,2]
[366804411,1750464643282,-354.58,0.00024657,2]
[366804412,1750464643291,-210.0,0.00024657,2]
[366804413,1750464643301,-490.0,0.00024657,2]
[366804414,1750464643311,-490.0,0.00024657,2]
[366804415,1750464643321,-490.0,0.00024657,2]
[366804416,1750464643331,-620.1,0.00024657,2]
[366804417,1750464643341,-278.94,0.00024657,2]
[366804418,1750464643365,-490.0,0.00024657,2]
[366804419,1750464643376,-490.0,0.00024657,2]
[366804420,1750464643388,-490.0,0.00024657,2]
[366804422,1750464643399,-490.0,0.00024657,2]
[366804424,1750464643410,-490.0,0.00024657,2]
[366804426,1750464643421,-490.0,0.00024657,2]
[366804428,1750464643431,-490.0,0.00024657,2]
[366804430,1750464643441,-490.0,0.00024657,2]
[366804432,1750464643451,-210.0,0.00024657,2]
[366804434,1750464643462,-490.0,0.00024657,2]
[366804436,1750464643472,-490.0,0.00024657,2]
[366804437,1750464643483,-490.0,0.00024657,2]
[366804438,1750464643493,-490.0,0.00024657,2]
[366804439,1750464643504,-237.22386103,0.00024657,2]
[366804440,1750464643514,-210.0,0.00024657,2]
[366804441,1750464643524,-490.0,0.00024657,2]
[366804443,1750464643534,-490.0,0.00024657,2]
[366804444,1750464643544,-490.0,0.00024657,2]
[366804445,1750464643554,-797.19,0.00024657,2]
[366804446,1750464643564,-490.0,0.00024657,2]
[366804447,1750464643575,-490.0,0.00024657,2]
[366804448,1750464643585,-490.0,0.00024657,2]
[366804449,1750464643595,-490.0,0.00024657,2]
[366804450,1750464643605,-490.0,0.00024657,2]
[366804451,1750464643615,-490.0,0.00024657,2]
[366804452,1750464643625,-490.0,0.00024657,2]
[366804453,1750464643635,-490.0,0.00024657,2]
[366804454,1750464643645,-490.0,0.00024657,2]
[366804455,1750464643656,-490.0,0.00024657,2]
[366804456,1750464643666,-506.83,0.00024657,2]
[366804457,1750464643679,-210.0,0.00024657,2]
[366804458,1750464643690,-490.0,0.00024657,2]
[366804459,1750464643700,-490.0,0.00024657,2]
[366804460,1750464643711,-310.1,0.00024657,2]
[366804461,1750464643722,-490.0,0.00024657,2]
[366804462,1750464643732,-534.85,0.00024657,2]
[366804463,1750464643742,-490.0,0.00024657,2]
[366804464,1750464643755,-490.0,0.00024657,2]
[366804465,1750464643767,-490.0,0.00024657,2]
[366804466,1750464643776,-210.0,0.00024657,2]
[366804467,1750464643786,-490.0,0.00024657,2]
[366804468,1750464643803,-490.0,0.00024657,2]
[366804469,1750464643814,-490.0,0.00024657,2]
[366804470,1750464643825,-490.0,0.00024657,2]
[366804471,1750464643836,-490.0,0.00024657,2]
[366804472,1750464643846,-490.0,0.00024657,2]
[366804473,1750464643856,-490.0,0.00024657,2]
[366804474,1750464643867,-490.0,0.00024657,2]
[366804475,1750464643877,-328.48,0.00024657,2]
[366804476,1750464643888,-210.0,0.00024657,2]
[366804477,1750464643899,-490.0,0.00024657,2]
[366804478,1750464643910,-490.0,0.00024657,2]
[366804479,1750464643920,-490.0,0.00024657,2]
[366804480,1750464643931,-490.0,0.00024657,2]
[366804481,1750464643942,-490.0,0.00024657,2]
[366804482,1750464643952,-490.0,0.00024657,2]
[366804483,1750464643962,-210.0,0.00024657,2]
[366804484,1750464643973,-490.0,0.00024657,2]
[366804485,1750464643984,-490.0,0.00024657,2]
[366804486,1750464643994,-490.0,0.00024657,2]
[366804487,1750464644005,-490.0,0.00024657,2]
[366804488,1750464644015,-490.0,0.00024657,2]
[366804489,1750464644026,-490.0,0.00024657,2]
[366804490,1750464644037,-490.0,0.00024657,2]
[366804491,1750464644048,-490.0,0.00024657,2]
[366804492,1750464644059,-210.0,0.00024657,2]
[366804493,1750464644070,-214.42189904,0.00024657,2]
[366804494,1750464644080,-490.0,0.00024657,2]
[366804495,1750464644090,-614.11635243,0.00024657,2]
[366804496,1750464644101,-490.0,0.00024657,2]
[366804497,1750464644111,-490.0,0.00024657,2]
[366804498,1750464644122,-426.82,0.00024657,2]
[366804499,1750464644132,-490.0,0.00024657,2]
[366804500,1750464644143,-490.0,0.00024657,2]
[366804501,1750464644154,-490.0,0.00024657,2]
[366804502,1750464644164,-213.0,0.00024657,2]
[366804503,1750464644174,-288.02,0.00024657,2]
[366804504,1750464644184,-490.0,0.00024657,2]
[366804505,1750464644195,-490.0,0.00024657,2]
[366804506,1750464644206,-490.0,0.00024657,2]
[366804507,1750464644216,-490.0,0.00024657,2]
[366804508,1750464644231,-490.0,0.00024657,2]
[366804509,1750464644242,-490.0,0.00024657,2]
[366804510,1750464644253,-490.0,0.00024657,2]
[366804511,1750464644263,-490.0,0.00024657,2]
[366804512,1750464644274,-490.0,0.00024657,2]
[366804513,1750464644284,-490.0,0.00024657,2]
[366804514,1750464644294,-490.0,0.00024657,2]
[366804515,1750464644304,-503.01,0.00024657,2]
[366804516,1750464644315,-490.0,0.00024657,2]
[366804517,1750464644325,-490.0,0.00024657,2]
[366804518,1750464644336,-490.0,0.00024657,2]